[Event "Titled Tuesday Blitz February 14 Early 2023"]
[White "Ghosh, Chanchal Kumer"]
[Black "Ipek, Egehan"]
[WhiteFideId "10201858"]
[BlackFideId "44523793"]
[WhiteElo "2020"]
[BlackElo "2308"]
[Result "0-1"]
[Round "06"]
[TimeControl "180+2"]
[Date "2023.02.15"]
[WhiteClock "0:00:03"]
[BlackClock "0:00:19"]

1. e4 {[%clk 0:03:00]}  c5 {[%clk 0:02:59]} 2. Nf3 {[%clk 0:03:01]}  e6 {[%clk 0:02:59]} 3. d4 {[%clk 0:03:01]}  cxd4 {[%clk 0:03:00]} 4. Nxd4 {[%clk 0:03:02]}  Nc6 {[%clk 0:03:01]} 5. Nc3 {[%clk 0:03:02]}  Qc7 {[%clk 0:03:01]} 6. Be2 {[%clk 0:03:02]}  Nf6 {[%clk 0:02:59]} 7. Be3 {[%clk 0:03:01]}  a6 {[%clk 0:02:59]} 8. O-O {[%clk 0:03:02]}  Bb4 {[%clk 0:03:00]} 9. Na4 {[%clk 0:02:57]}  Be7 {[%clk 0:02:59]} 10. Nxc6 {[%clk 0:02:44]}  bxc6 {[%clk 0:02:59]} 11. Nb6 {[%clk 0:02:43]}  Rb8 {[%clk 0:02:59]} 12. Nxc8 {[%clk 0:02:42]}  Qxc8 {[%clk 0:03:00]} 13. e5 {[%clk 0:02:38]}  Nd5 {[%clk 0:03:00]} 14. Bc1 {[%clk 0:02:34]}  Bc5 {[%clk 0:02:57]} 15. c4 {[%clk 0:02:29]}  Ne7 {[%clk 0:02:57]} 16. Kh1 {[%clk 0:02:28]}  Qc7 {[%clk 0:02:52]} 17. f4 {[%clk 0:02:28]}  O-O {[%clk 0:02:52]} 18. Bd3 {[%clk 0:02:25]}  d6 {[%clk 0:02:49]} 19. Rf3 {[%clk 0:02:12]}  dxe5 {[%clk 0:02:18]} 20. Bxh7+ {[%clk 0:02:11]}  Kxh7 {[%clk 0:02:12]} 21. Rh3+ {[%clk 0:02:10]}  Kg8 {[%clk 0:02:10]} 22. Qh5 {[%clk 0:02:06]}  f5 {[%clk 0:01:45]} 23. fxe5 {[%clk 0:01:57]}  Qxe5 {[%clk 0:01:40]} 24. Bg5 {[%clk 0:01:57]}  Rxb2 {[%clk 0:00:59]} 25. Rf1 {[%clk 0:01:25]}  Qe2 {[%clk 0:00:38]} 26. Qh7+ {[%clk 0:00:41]}  Kf7 {[%clk 0:00:37]} 27. Qh5+ {[%clk 0:00:32]}  Qxh5 {[%clk 0:00:36]} 28. Rxh5 {[%clk 0:00:33]}  Kg6 {[%clk 0:00:35]} 29. Bxe7 {[%clk 0:00:30]}  Bxe7 {[%clk 0:00:33]} 30. Rh3 {[%clk 0:00:27]}  Rd8 {[%clk 0:00:31]} 31. Rg3+ {[%clk 0:00:25]}  Kf7 {[%clk 0:00:32]} 32. h3 {[%clk 0:00:25]}  Rdd2 {[%clk 0:00:30]} 33. a4 {[%clk 0:00:24]}  Bh4 {[%clk 0:00:28]} 34. Rg4 {[%clk 0:00:14]}  Bf2 {[%clk 0:00:27]} 35. Rf4 {[%clk 0:00:09]}  Bg3 {[%clk 0:00:26]} 36. R4f3 {[%clk 0:00:06]}  Rxg2 {[%clk 0:00:26]} 37. Rd1 {[%clk 0:00:05]}  Rh2+ {[%clk 0:00:21]} 38. Kg1 {[%clk 0:00:06]}  Rbg2+ {[%clk 0:00:19]} 39. Kf1 {[%clk 0:00:06]}  Rf2+ {[%clk 0:00:20]} 40. Rxf2 {[%clk 0:00:04]}  Rxf2+ {[%clk 0:00:20]} 41. Kg1 {[%clk 0:00:05]}  e5 {[%clk 0:00:19]} 42. Rd6 {[%clk 0:00:03]}  e4 {[%clk 0:00:18]} 43. Rxc6 {[%clk 0:00:03]}  e3 {[%clk 0:00:19]} 0-1


[Site "https://www.chess.com"]

[Event "Titled Tuesday Blitz February 14 Early 2023"]
[White "Hertlein, Irena"]
[Black "EdmundPlayer"]
[WhiteFideId "21817618"]
[WhiteElo "1994"]
[BlackElo "2246"]
[Result "0-1"]
[Round "06"]
[TimeControl "180+2"]
[Date "2023.02.15"]
[WhiteClock "0:00:01"]
[BlackClock "0:00:11"]

1. Nf3 {[%clk 0:03:00]}  d5 {[%clk 0:02:58]} 2. e3 {[%clk 0:03:00]}  c5 {[%clk 0:02:57]} 3. c4 {[%clk 0:02:59]}  d4 {[%clk 0:02:54]} 4. b4 {[%clk 0:02:59]}  dxe3 {[%clk 0:02:39]} 5. fxe3 {[%clk 0:03:00]}  cxb4 {[%clk 0:02:37]} 6. d4 {[%clk 0:03:00]}  Nf6 {[%clk 0:02:36]} 7. Bd3 {[%clk 0:02:43]}  g6 {[%clk 0:02:29]} 8. O-O {[%clk 0:02:42]}  Bg7 {[%clk 0:02:30]} 9. a3 {[%clk 0:02:42]}  bxa3 {[%clk 0:02:27]} 10. Nc3 {[%clk 0:02:40]}  O-O {[%clk 0:02:25]} 11. e4 {[%clk 0:02:40]}  Bg4 {[%clk 0:02:20]} 12. e5 {[%clk 0:02:39]}  Ne8 {[%clk 0:02:14]} 13. Be3 {[%clk 0:02:31]}  Nc6 {[%clk 0:02:13]} 14. Be2 {[%clk 0:02:12]}  Nc7 {[%clk 0:02:09]} 15. h3 {[%clk 0:02:12]}  Bf5 {[%clk 0:01:59]} 16. Rxa3 {[%clk 0:02:04]}  h5 {[%clk 0:01:54]} 17. Ng5 {[%clk 0:02:01]}  Ne6 {[%clk 0:01:47]} 18. Nxe6 {[%clk 0:01:49]}  fxe6 {[%clk 0:01:40]} 19. Rb3 {[%clk 0:01:32]}  Na5 {[%clk 0:01:32]} 20. Rb5 {[%clk 0:01:28]}  a6 {[%clk 0:01:19]} 21. Rb2 {[%clk 0:01:24]}  Rc8 {[%clk 0:01:17]} 22. c5 {[%clk 0:01:22]}  h4 {[%clk 0:01:04]} 23. Bg5 {[%clk 0:01:07]}  b6 {[%clk 0:01:03]} 24. Bxa6 {[%clk 0:00:59]}  Rb8 {[%clk 0:00:59]} 25. Qa1 {[%clk 0:00:44]}  Nc6 {[%clk 0:00:48]} 26. Rd2 {[%clk 0:00:33]}  Nxd4 {[%clk 0:00:43]} 27. Nb5 {[%clk 0:00:31]}  Bxe5 {[%clk 0:00:37]} 28. Nxd4 {[%clk 0:00:25]}  bxc5 {[%clk 0:00:37]} 29. Qa2 {[%clk 0:00:11]}  Bxd4+ {[%clk 0:00:35]} 30. Kh1 {[%clk 0:00:12]}  Qd5 {[%clk 0:00:31]} 31. Bc4 {[%clk 0:00:10]}  Qd6 {[%clk 0:00:30]} 32. Rxf5 {[%clk 0:00:10]}  gxf5 {[%clk 0:00:26]} 33. Bxe6+ {[%clk 0:00:11]}  Kg7 {[%clk 0:00:25]} 34. Bxh4 {[%clk 0:00:09]}  Qf4 {[%clk 0:00:22]} 35. Rxd4 {[%clk 0:00:07]}  cxd4 {[%clk 0:00:18]} 36. Bf2 {[%clk 0:00:08]}  Rf6 {[%clk 0:00:15]} 37. Qa7 {[%clk 0:00:01]}  Rb1+ {[%clk 0:00:13]} 38. Bg1 {[%clk 0:00:01]}  Rxe6 {[%clk 0:00:11]} 0-1


[Site "https://www.chess.com"]

[Event "Titled Tuesday Blitz February 14 Early 2023"]
[White "Levine, David"]
[Black "lisjakzlatko1"]
[WhiteFideId "2011611"]
[WhiteElo "2040"]
[BlackElo "2220"]
[Result "0-1"]
[Round "06"]
[TimeControl "180+2"]
[Date "2023.02.15"]
[WhiteClock "0:00:36"]
[BlackClock "0:00:53"]

1. d4 {[%clk 0:02:58]}  d5 {[%clk 0:02:55]} 2. c4 {[%clk 0:02:58]}  Nc6 {[%clk 0:02:54]} 3. Nc3 {[%clk 0:02:54]}  dxc4 {[%clk 0:02:52]} 4. d5 {[%clk 0:02:54]}  Na5 {[%clk 0:02:53]} 5. e4 {[%clk 0:02:51]}  e6 {[%clk 0:02:50]} 6. Bxc4 {[%clk 0:02:48]}  exd5 {[%clk 0:02:33]} 7. Bxd5 {[%clk 0:02:47]}  c6 {[%clk 0:02:32]} 8. Bb3 {[%clk 0:02:46]}  Nxb3 {[%clk 0:02:26]} 9. Qxb3 {[%clk 0:02:44]}  Nf6 {[%clk 0:02:18]} 10. Bg5 {[%clk 0:02:43]}  h6 {[%clk 0:02:17]} 11. Bh4 {[%clk 0:02:41]}  Be7 {[%clk 0:02:12]} 12. Nf3 {[%clk 0:02:40]}  O-O {[%clk 0:02:10]} 13. O-O {[%clk 0:02:35]}  Re8 {[%clk 0:01:59]} 14. Rfd1 {[%clk 0:02:31]}  Qb6 {[%clk 0:01:59]} 15. Nd4 {[%clk 0:02:15]}  g5 {[%clk 0:01:40]} 16. Bg3 {[%clk 0:02:12]}  Nh5 {[%clk 0:01:36]} 17. Qxb6 {[%clk 0:01:52]}  axb6 {[%clk 0:01:35]} 18. Bc7 {[%clk 0:01:49]}  b5 {[%clk 0:01:26]} 19. a3 {[%clk 0:01:48]}  Bf6 {[%clk 0:01:18]} 20. f3 {[%clk 0:01:23]}  b4 {[%clk 0:01:15]} 21. Nce2 {[%clk 0:01:03]}  c5 {[%clk 0:01:05]} 22. e5 {[%clk 0:00:42]}  Bxe5 {[%clk 0:01:05]} 23. Bxe5 {[%clk 0:00:41]}  Rxe5 {[%clk 0:01:05]} 24. Nb5 {[%clk 0:00:38]}  bxa3 {[%clk 0:00:55]} 25. Nxa3 {[%clk 0:00:36]}  Rxe2 {[%clk 0:00:53]} 0-1


[Site "https://www.chess.com"]

[Event "Titled Tuesday Blitz February 14 Early 2023"]
[White "Hernandez Bonilla, Amelia"]
[Black "Thomas, Anysia"]
[WhiteFideId "3900193"]
[BlackFideId "670472"]
[WhiteElo "1960"]
[BlackElo "2147"]
[Result "0-1"]
[Round "06"]
[TimeControl "180+2"]
[Date "2023.02.15"]
[WhiteClock "0:00:24"]
[BlackClock "0:00:14"]

1. d4 {[%clk 0:02:58]}  Nf6 {[%clk 0:02:53]} 2. Bf4 {[%clk 0:02:55]}  g6 {[%clk 0:02:53]} 3. Nc3 {[%clk 0:02:55]}  d5 {[%clk 0:02:52]} 4. e3 {[%clk 0:02:54]}  Bg7 {[%clk 0:02:52]} 5. Nf3 {[%clk 0:02:54]}  O-O {[%clk 0:02:52]} 6. Be2 {[%clk 0:02:53]}  c5 {[%clk 0:02:48]} 7. O-O {[%clk 0:02:43]}  Nc6 {[%clk 0:02:35]} 8. dxc5 {[%clk 0:02:29]}  Qa5 {[%clk 0:02:17]} 9. Nd4 {[%clk 0:02:04]}  Qxc5 {[%clk 0:02:04]} 10. Nb3 {[%clk 0:02:00]}  Qb6 {[%clk 0:01:56]} 11. Nxd5 {[%clk 0:01:56]}  Nxd5 {[%clk 0:01:54]} 12. Qxd5 {[%clk 0:01:57]}  Be6 {[%clk 0:01:54]} 13. Qc5 {[%clk 0:01:50]}  Bxb2 {[%clk 0:01:50]} 14. Rab1 {[%clk 0:01:41]}  Bxb3 {[%clk 0:01:40]} 15. Qxb6 {[%clk 0:01:40]}  axb6 {[%clk 0:01:41]} 16. axb3 {[%clk 0:01:37]}  Bg7 {[%clk 0:01:38]} 17. Bf3 {[%clk 0:01:33]}  Ra2 {[%clk 0:01:36]} 18. c4 {[%clk 0:01:31]}  Rd8 {[%clk 0:01:29]} 19. Rfd1 {[%clk 0:01:30]}  Rdd2 {[%clk 0:01:27]} 20. Rxd2 {[%clk 0:01:30]}  Rxd2 {[%clk 0:01:26]} 21. Rd1 {[%clk 0:01:28]}  Rb2 {[%clk 0:01:20]} 22. h4 {[%clk 0:01:21]}  h5 {[%clk 0:01:08]} 23. Rd7 {[%clk 0:01:18]}  Rxb3 {[%clk 0:00:57]} 24. Rxb7 {[%clk 0:01:16]}  Ne5 {[%clk 0:00:53]} 25. Bxe5 {[%clk 0:01:07]}  Bxe5 {[%clk 0:00:52]} 26. g3 {[%clk 0:01:05]}  Bd6 {[%clk 0:00:48]} 27. Bd5 {[%clk 0:01:01]}  Rb4 {[%clk 0:00:42]} 28. Rd7 {[%clk 0:00:58]}  Bc5 {[%clk 0:00:39]} 29. Kg2 {[%clk 0:00:54]}  e6 {[%clk 0:00:38]} 30. Bc6 {[%clk 0:00:51]}  Rxc4 {[%clk 0:00:35]} 31. Rd8+ {[%clk 0:00:49]}  Kg7 {[%clk 0:00:35]} 32. Be8 {[%clk 0:00:48]}  Be7 {[%clk 0:00:23]} 33. Rd7 {[%clk 0:00:45]}  Kf8 {[%clk 0:00:23]} 34. Rb7 {[%clk 0:00:35]}  Kxe8 {[%clk 0:00:22]} 35. Rxb6 {[%clk 0:00:35]}  Kf8 {[%clk 0:00:22]} 36. Rb8+ {[%clk 0:00:33]}  Kg7 {[%clk 0:00:22]} 37. Rb7 {[%clk 0:00:34]}  Bd6 {[%clk 0:00:21]} 38. Rd7 {[%clk 0:00:33]}  Bc5 {[%clk 0:00:19]} 39. Kf3 {[%clk 0:00:29]}  Rc1 {[%clk 0:00:18]} 40. Ke2 {[%clk 0:00:27]}  Kf6 {[%clk 0:00:18]} 41. Rc7 {[%clk 0:00:24]}  Bxe3 {[%clk 0:00:14]} 0-1


[Site "https://www.chess.com"]

[Event "Titled Tuesday Blitz February 14 Early 2023"]
[White "Sanal, Vahap"]
[Black "Madaminov, Mukhiddin"]
[WhiteFideId "6300545"]
[BlackFideId "14210703"]
[WhiteElo "2600"]
[BlackElo "2422"]
[Result "1/2-1/2"]
[Round "07"]
[TimeControl "180+2"]
[Date "2023.02.15"]
[WhiteClock "0:00:03"]
[BlackClock "0:00:06"]

1. Nf3 {[%clk 0:02:53]}  Nf6 {[%clk 0:03:00]} 2. g3 {[%clk 0:02:52]}  g6 {[%clk 0:03:00]} 3. Bg2 {[%clk 0:02:53]}  Bg7 {[%clk 0:03:01]} 4. d4 {[%clk 0:02:53]}  d5 {[%clk 0:03:00]} 5. O-O {[%clk 0:02:53]}  O-O {[%clk 0:02:58]} 6. c3 {[%clk 0:02:54]}  c6 {[%clk 0:02:44]} 7. a4 {[%clk 0:02:51]}  Nbd7 {[%clk 0:02:36]} 8. a5 {[%clk 0:02:50]}  Ne4 {[%clk 0:02:36]} 9. Nbd2 {[%clk 0:02:49]}  Nd6 {[%clk 0:02:30]} 10. Re1 {[%clk 0:02:43]}  e5 {[%clk 0:02:09]} 11. dxe5 {[%clk 0:02:42]}  Nxe5 {[%clk 0:02:09]} 12. Nxe5 {[%clk 0:02:43]}  Bxe5 {[%clk 0:02:10]} 13. e4 {[%clk 0:02:27]}  dxe4 {[%clk 0:02:09]} 14. Nxe4 {[%clk 0:02:27]}  Nxe4 {[%clk 0:02:08]} 15. Qxd8 {[%clk 0:02:25]}  Rxd8 {[%clk 0:02:08]} 16. Bxe4 {[%clk 0:02:25]}  Bf6 {[%clk 0:01:30]} 17. Bf4 {[%clk 0:02:21]}  a6 {[%clk 0:01:24]} 18. Ra4 {[%clk 0:02:08]}  Be6 {[%clk 0:01:19]} 19. Rb4 {[%clk 0:01:37]}  Rd7 {[%clk 0:01:18]} 20. Bf3 {[%clk 0:01:35]}  Rad8 {[%clk 0:01:11]} 21. Kg2 {[%clk 0:01:32]}  Be7 {[%clk 0:01:01]} 22. Rbe4 {[%clk 0:01:32]}  Bf6 {[%clk 0:00:46]} 23. h4 {[%clk 0:01:27]}  h5 {[%clk 0:00:41]} 24. Be5 {[%clk 0:01:15]}  Bxe5 {[%clk 0:00:35]} 25. Rxe5 {[%clk 0:01:16]}  Bd5 {[%clk 0:00:34]} 26. Bxd5 {[%clk 0:01:01]}  Rxd5 {[%clk 0:00:35]} 27. Rxd5 {[%clk 0:01:01]}  Rxd5 {[%clk 0:00:36]} 28. Re7 {[%clk 0:00:59]}  Rb5 {[%clk 0:00:33]} 29. b4 {[%clk 0:00:57]}  c5 {[%clk 0:00:28]} 30. Re4 {[%clk 0:00:56]}  cxb4 {[%clk 0:00:27]} 31. cxb4 {[%clk 0:00:56]}  f6 {[%clk 0:00:21]} 32. f3 {[%clk 0:00:51]}  g5 {[%clk 0:00:17]} 33. Kh3 {[%clk 0:00:45]}  Kf7 {[%clk 0:00:17]} 34. Rc4 {[%clk 0:00:36]}  Kg6 {[%clk 0:00:16]} 35. Rd4 {[%clk 0:00:35]}  Re5 {[%clk 0:00:12]} 36. Rc4 {[%clk 0:00:30]}  Re3 {[%clk 0:00:11]} 37. Rc7 {[%clk 0:00:20]}  Rxf3 {[%clk 0:00:11]} 38. Rxb7 {[%clk 0:00:21]}  g4+ {[%clk 0:00:12]} 39. Kg2 {[%clk 0:00:21]}  Rb3 {[%clk 0:00:12]} 40. Rb6 {[%clk 0:00:17]}  Kf5 {[%clk 0:00:13]} 41. Rxa6 {[%clk 0:00:18]}  Rb2+ {[%clk 0:00:12]} 42. Kf1 {[%clk 0:00:17]}  Rxb4 {[%clk 0:00:13]} 43. Rb6 {[%clk 0:00:18]}  Ra4 {[%clk 0:00:12]} 44. a6 {[%clk 0:00:18]}  Ra2 {[%clk 0:00:11]} 45. Kg1 {[%clk 0:00:15]}  Ke5 {[%clk 0:00:10]} 46. Kf1 {[%clk 0:00:04]}  f5 {[%clk 0:00:10]} 47. Rb5+ {[%clk 0:00:02]}  Ke4 {[%clk 0:00:10]} 48. Rb4+ {[%clk 0:00:02]}  Ke3 {[%clk 0:00:11]} 49. Rb3+ {[%clk 0:00:03]}  Kd4 {[%clk 0:00:11]} 50. Rb4+ {[%clk 0:00:03]}  Ke5 {[%clk 0:00:10]} 51. Rb5+ {[%clk 0:00:03]}  Ke4 {[%clk 0:00:07]} 52. Rb4+ {[%clk 0:00:04]}  Kd3 {[%clk 0:00:08]} 53. Rf4 {[%clk 0:00:02]}  Rxa6 {[%clk 0:00:04]} 54. Rxf5 {[%clk 0:00:02]}  Ke3 {[%clk 0:00:05]} 55. Kg2 {[%clk 0:00:01]}  Ra2+ {[%clk 0:00:05]} 56. Kg1 {[%clk 0:00:02]}  Ra1+ {[%clk 0:00:06]} 57. Kg2 {[%clk 0:00:02]}  Ra2+ {[%clk 0:00:07]} 58. Kg1 {[%clk 0:00:03]}  Rd2 {[%clk 0:00:07]} 59. Rf6 {[%clk 0:00:02]}  Ke4 {[%clk 0:00:07]} 60. Rf4+ {[%clk 0:00:02]}  Ke3 {[%clk 0:00:08]} 61. Rf8 {[%clk 0:00:03]}  Rd5 {[%clk 0:00:06]} 62. Rf7 {[%clk 0:00:03]}  Ke2 {[%clk 0:00:06]} 63. Kg2 {[%clk 0:00:02]}  Re5 {[%clk 0:00:04]} 64. Ra7 {[%clk 0:00:03]}  Rd5 {[%clk 0:00:04]} 65. Re7+ {[%clk 0:00:03]}  Kd3 {[%clk 0:00:04]} 66. Kf2 {[%clk 0:00:03]}  Rf5+ {[%clk 0:00:04]} 67. Kg2 {[%clk 0:00:03]}  Ra5 {[%clk 0:00:04]} 68. Rd7+ {[%clk 0:00:03]}  Ke4 {[%clk 0:00:05]} 69. Re7+ {[%clk 0:00:03]}  Re5 {[%clk 0:00:05]} 70. Rd7 {[%clk 0:00:02]}  Rd5 {[%clk 0:00:06]} 71. Re7+ {[%clk 0:00:02]}  Re5 {[%clk 0:00:05]} 72. Rd7 {[%clk 0:00:02]}  Ke3 {[%clk 0:00:06]} 73. Rf7 {[%clk 0:00:02]}  Ke2 {[%clk 0:00:05]} 74. Rf6 {[%clk 0:00:03]}  Ke1 {[%clk 0:00:05]} 75. Rf1+ {[%clk 0:00:03]}  Kd2 {[%clk 0:00:06]} 76. Rf8 {[%clk 0:00:03]}  Re2+ {[%clk 0:00:06]} 77. Kg1 {[%clk 0:00:03]}  Ke3 {[%clk 0:00:05]} 78. Rf5 {[%clk 0:00:03]}  Rd2 {[%clk 0:00:06]} 79. Rf8 {[%clk 0:00:03]}  Rd3 {[%clk 0:00:06]} 80. Kg2 {[%clk 0:00:03]}  Rd2+ {[%clk 0:00:06]} 81. Kg1 {[%clk 0:00:03]} 1/2-1/2


[Site "https://www.chess.com"]

[Event "Titled Tuesday Blitz February 14 Early 2023"]
[White "Predke, Alexandr"]
[Black "Andreikin, Dmitry"]
[WhiteFideId "24107581"]
[BlackFideId "4158814"]
[WhiteElo "2685"]
[BlackElo "2729"]
[Result "1/2-1/2"]
[Round "07"]
[TimeControl "180+2"]
[Date "2023.02.15"]
[WhiteClock "0:00:03"]
[BlackClock "0:00:09"]

1. e4 {[%clk 0:03:00]}  c5 {[%clk 0:02:55]} 2. Nf3 {[%clk 0:02:59]}  e6 {[%clk 0:02:55]} 3. c3 {[%clk 0:02:56]}  Nf6 {[%clk 0:02:52]} 4. Bd3 {[%clk 0:02:52]}  d5 {[%clk 0:02:34]} 5. e5 {[%clk 0:02:52]}  Nfd7 {[%clk 0:02:34]} 6. Bc2 {[%clk 0:02:52]}  d4 {[%clk 0:02:31]} 7. O-O {[%clk 0:02:50]}  Nc6 {[%clk 0:02:30]} 8. Re1 {[%clk 0:02:49]}  Be7 {[%clk 0:02:29]} 9. Qe2 {[%clk 0:02:40]}  g5 {[%clk 0:02:18]} 10. h3 {[%clk 0:01:44]}  h5 {[%clk 0:02:18]} 11. g4 {[%clk 0:01:45]}  hxg4 {[%clk 0:01:56]} 12. hxg4 {[%clk 0:01:46]}  Qc7 {[%clk 0:01:28]} 13. Na3 {[%clk 0:01:44]}  a6 {[%clk 0:01:28]} 14. cxd4 {[%clk 0:01:11]}  Nxd4 {[%clk 0:01:21]} 15. Nxd4 {[%clk 0:01:10]}  cxd4 {[%clk 0:01:22]} 16. Nc4 {[%clk 0:01:01]}  Nc5 {[%clk 0:00:56]} 17. b4 {[%clk 0:00:50]}  d3 {[%clk 0:00:45]} 18. Bxd3 {[%clk 0:00:47]}  Nxd3 {[%clk 0:00:45]} 19. Qxd3 {[%clk 0:00:48]}  b5 {[%clk 0:00:30]} 20. Nd6+ {[%clk 0:00:45]}  Bxd6 {[%clk 0:00:31]} 21. exd6 {[%clk 0:00:46]}  Bb7 {[%clk 0:00:31]} 22. f3 {[%clk 0:00:41]}  O-O-O {[%clk 0:00:27]} 23. Bb2 {[%clk 0:00:29]}  Rxd6 {[%clk 0:00:27]} 24. Qe3 {[%clk 0:00:29]}  Rh3 {[%clk 0:00:11]} 25. Rac1 {[%clk 0:00:26]}  Rc6 {[%clk 0:00:10]} 26. Be5 {[%clk 0:00:22]}  Qd7 {[%clk 0:00:08]} 27. Qa7 {[%clk 0:00:17]}  Kd8 {[%clk 0:00:06]} 28. Bf6+ {[%clk 0:00:11]}  Ke8 {[%clk 0:00:04]} 29. Qb8+ {[%clk 0:00:09]}  Qc8 {[%clk 0:00:03]} 30. Qxc8+ {[%clk 0:00:05]}  Rxc8 {[%clk 0:00:02]} 31. Rxc8+ {[%clk 0:00:05]}  Bxc8 {[%clk 0:00:03]} 32. Kg2 {[%clk 0:00:05]}  Rh6 {[%clk 0:00:03]} 33. Bxg5 {[%clk 0:00:04]}  Rg6 {[%clk 0:00:03]} 34. Be3 {[%clk 0:00:04]}  Bb7 {[%clk 0:00:04]} 35. Kg3 {[%clk 0:00:04]}  Bd5 {[%clk 0:00:04]} 36. a3 {[%clk 0:00:03]}  Rg8 {[%clk 0:00:04]} 37. Rc1 {[%clk 0:00:04]}  Kd7 {[%clk 0:00:04]} 38. Bf4 {[%clk 0:00:04]}  Rc8 {[%clk 0:00:04]} 39. Rxc8 {[%clk 0:00:02]}  Kxc8 {[%clk 0:00:05]} 40. Be3 {[%clk 0:00:03]}  Kd7 {[%clk 0:00:06]} 41. Kf4 {[%clk 0:00:03]}  Bc6 {[%clk 0:00:06]} 42. Bc5 {[%clk 0:00:03]}  Bd5 {[%clk 0:00:06]} 43. Ke3 {[%clk 0:00:04]}  Bc6 {[%clk 0:00:06]} 44. f4 {[%clk 0:00:04]}  Bd5 {[%clk 0:00:06]} 45. f5 {[%clk 0:00:04]}  exf5 {[%clk 0:00:06]} 46. gxf5 {[%clk 0:00:04]}  Kc6 {[%clk 0:00:06]} 47. Kf4 {[%clk 0:00:04]}  Bb3 {[%clk 0:00:07]} 48. Ke5 {[%clk 0:00:04]}  Ba2 {[%clk 0:00:07]} 49. d4 {[%clk 0:00:03]}  Bb3 {[%clk 0:00:08]} 50. Kf6 {[%clk 0:00:03]}  Kd7 {[%clk 0:00:08]} 51. Ke5 {[%clk 0:00:03]}  Kc6 {[%clk 0:00:08]} 52. Kf6 {[%clk 0:00:03]}  Kd7 {[%clk 0:00:09]} 53. Ke5 {[%clk 0:00:03]}  Kc6 {[%clk 0:00:09]} 1/2-1/2


[Site "https://www.chess.com"]